bitfinex/quotes_SOLUSD_20240809
["timestamp","ask_amount","ask_price","bid_price","bid_amount"]
[1723190159826,49.7364,157.79,157.74,6.3394]
[1723190160147,43.3989,157.79,157.72,15.8502]
[1723190160325,26.93,157.8,157.74,15.8479]
[1723190160743,33.2671,157.8,157.76,6.3387]
[1723190160923,26.93,157.81,157.77,6.3382]
[1723190161125,6.3364,157.82,157.77,6.3382]
[1723190161126,33.2664,157.82,157.77,6.3382]
[1723190161940,6.3368,157.81,157.77,6.3383]
[1723190162142,6.3368,157.81,157.76,22.1842]
[1723190162351,26.93,157.83,157.78,15.844]
[1723190162720,26.93,157.84,157.8,6.337]
[1723190163149,33.2656,157.84,157.79,6.3374]
[1723190163341,26.93,157.84,157.79,6.3374]
[1723190163654,26.93,157.84,157.76,26.93]
[1723190163835,26.93,157.82,157.77,6.3382]
[1723190164033,26.93,157.82,157.78,6.3377]
[1723190164232,33.2663,157.82,157.77,22.1834]
[1723190164638,26.93,157.84,157.79,15.8432]
[1723190165131,26.93,157.82,157.76,15.8465]
[1723190165555,26.93,157.82,157.77,45.0]
[1723190165919,26.93,157.82,157.78,6.3378]
[1723190166427,26.93,157.82,157.79,6.3375]
[1723190167223,6.3356,157.84,157.81,6.3367]
[1723190167224,26.93,157.84,157.81,6.3367]
[1723190167426,33.2648,157.86,157.82,6.3362]
[1723190167729,33.2648,157.86,157.81,6.3366]
[1723190168550,6.3353,157.85,157.8,22.1792]
[1723190168935,26.93,157.84,157.8,22.1792]
[1723190169132,33.2655,157.84,157.8,22.1792]
[1723190169525,26.93,157.84,157.81,6.3364]
[1723190169730,26.93,157.84,157.8,22.1789]
[1723190170740,26.93,157.84,157.81,6.3366]
[1723190170950,26.93,157.84,157.8,22.1792]
[1723190171140,33.2655,157.84,157.8,15.8422]
[1723190171641,26.93,157.82,157.79,6.3374]
[1723190171979,26.93,157.84,157.81,6.3367]
[1723190172139,26.93,157.86,157.83,6.3356]
[1723190172537,33.2647,157.86,157.81,15.8411]
[1723190172965,33.2647,157.86,157.81,22.1774]
[1723190173963,26.93,157.86,157.82,6.3362]
[1723190174172,26.93,157.86,157.83,15.8392]
[1723190174362,16.023,157.87,157.84,6.3354]
[1723190174665,6.335,157.86,157.81,6.3366]
[1723190175645,26.93,157.85,157.81,6.3366]
[1723190176156,26.93,157.85,157.82,6.3362]
[1723190176355,26.93,157.85,157.81,6.3366]
[1723190177158,33.2652,157.85,157.81,6.3366]
[1723190177459,33.2652,157.85,157.8,22.1793]
[1723190177460,6.3355,157.84,157.8,22.1793]
[1723190177679,33.2652,157.85,157.8,22.1793]
[1723190177842,33.2666,157.82,157.77,22.1837]
[1723190178043,6.3368,157.81,157.77,22.1837]
[1723190178563,6.3355,157.84,157.8,6.3371]
[1723190178757,6.3355,157.84,157.78,15.8442]
[1723190178758,6.3359,157.83,157.78,22.1817]
[1723190178955,6.3367,157.81,157.77,6.3382]
[1723190179141,6.3371,157.8,157.75,22.1864]
[1723190179345,26.93,157.79,157.75,22.1864]
[1723190180244,26.93,157.79,157.76,6.3387]
[1723190180464,12.375,157.83,157.78,6.3379]
[1723190180766,12.375,157.83,157.79,6.3374]
[1723190180767,6.0391,157.83,157.79,6.3374]
[1723190180952,12.375,157.83,157.78,6.3378]
[1723190181356,12.375,157.83,157.77,22.1831]
[1723190181357,6.3363,157.82,157.77,22.1831]
[1723190181865,26.93,157.8,157.77,22.1831]
[1723190182571,26.93,157.8,157.77,15.8449]
[1723190182760,33.2674,157.8,157.75,6.3391]
[1723190183065,26.93,157.78,157.75,6.3391]
[1723190183740,26.93,157.78,157.76,6.3386]
[1723190183959,26.93,157.79,157.77,6.338]
[1723190184562,26.93,157.79,157.74,15.8488]
[1723190185173,26.93,157.79,157.75,6.3388]
[1723190185356,33.2679,157.78,157.74,15.8488]
[1723190185750,6.3379,157.78,157.74,15.8488]
[1723190186054,6.3379,157.78,157.74,22.1882]
[1723190186263,16.1748,157.8,157.75,6.339]
[1723190186476,26.93,157.78,157.76,6.3386]
[1723190186780,26.93,157.78,157.75,6.339]
[1723190187863,26.93,157.79,157.74,15.8488]
[1723190188085,43.1048,157.8,157.77,6.3383]
[1723190189072,26.93,157.79,157.76,22.1846]
[1723190189581,26.93,157.79,157.76,15.846]
[1723190190178,26.93,157.79,157.76,22.1846]
[1723190191050,16.1748,157.8,157.77,6.3381]
[1723190191257,43.1048,157.8,157.76,15.846]
[1723190191478,49.4419,157.8,157.76,15.846]
[1723190191981,43.1048,157.8,157.76,22.1845]
[1723190192162,49.4419,157.8,157.76,15.846]
[1723190192771,26.93,157.79,157.76,15.846]
[1723190192974,26.93,157.79,157.76,22.1847]
[1723190193186,49.4419,157.8,157.76,22.1847]
[1723190193481,6.3375,157.79,157.75,6.3391]
[1723190194559,49.442,157.8,157.76,6.3386]
[1723190194962,49.442,157.8,157.75,6.339]
[1723190195470,49.442,157.8,157.74,45.0]
[1723190195471,16.1748,157.8,157.76,22.1852]
[1723190195791,18.54,157.78,157.74,45.0]
[1723190196092,18.54,157.78,157.74,6.3392]
[1723190196894,18.54,157.79,157.76,6.3386]
[1723190197088,18.54,157.77,157.72,15.8507]
[1723190197391,18.54,157.75,157.73,6.3398]
[1723190197591,18.54,157.76,157.74,6.3395]
[1723190197768,18.54,157.76,157.72,15.8507]
[1723190197769,18.54,157.77,157.75,6.3391]
[1723190197978,22.512,157.8,157.74,15.8483]
[1723190197979,18.54,157.78,157.74,15.8483]
[1723190198172,18.54,157.79,157.74,34.3883]
[1723190198376,18.54,157.79,157.76,6.3386]
[1723190198678,18.54,157.78,157.76,6.3386]
[1723190198876,18.54,157.79,157.76,6.3386]
[1723190199599,18.54,157.79,157.74,18.54]
[1723190199778,34.7148,157.8,157.78,6.3378]
[1723190199977,18.54,157.79,157.76,22.1851]
[1723190200178,18.54,157.77,157.73,22.1894]
[1723190200480,18.54,157.76,157.73,22.1894]
[1723190200684,18.54,157.77,157.73,15.8495]
[1723190200883,18.54,157.77,157.73,22.1891]
[1723190201289,18.54,157.77,157.74,6.3395]
[1723190201477,18.54,157.77,157.75,6.339]
[1723190202897,18.54,157.78,157.75,15.8472]
[1723190203099,18.54,157.79,157.77,6.3383]
[1723190203393,18.54,157.79,157.76,6.3386]
[1723190203593,18.54,157.78,157.76,6.3386]
[1723190204005,16.1748,157.8,157.77,6.3383]
[1723190204192,18.54,157.81,157.78,6.3378]
[1723190204896,18.54,157.81,157.79,6.3374]
[1723190205097,18.54,157.82,157.79,15.843]
[1723190205500,18.54,157.82,157.79,22.1804]
[1723190205680,27.02,157.83,157.79,22.1804]
[1723190207079,33.3559,157.83,157.79,22.1804]
[1723190207295,27.02,157.83,157.8,6.3369]
[1723190207478,42.8963,157.84,157.8,6.3369]
[1723190207679,27.02,157.83,157.8,6.3369]
[1723190208882,27.02,157.83,157.81,6.3367]
[1723190209105,27.02,157.83,157.8,6.337]
[1723190209913,27.02,157.83,157.81,6.3366]
[1723190210107,27.02,157.83,157.8,6.337]
[1723190210399,27.02,157.83,157.79,22.1805]
[1723190210599,27.02,157.83,157.79,15.843]
[1723190210780,27.02,157.83,157.8,6.337]
[1723190211907,27.02,157.83,157.79,22.1805]
[1723190212208,27.02,157.83,157.8,6.337]
[1723190212979,27.02,157.83,157.79,22.1804]
[1723190213176,27.02,157.82,157.79,22.1804]
[1723190213905,27.02,157.83,157.79,22.1804]
[1723190214114,42.8963,157.84,157.79,15.843]
[1723190214605,27.02,157.83,157.79,15.843]
[1723190214998,27.02,157.83,157.81,6.3366]
[1723190215381,27.02,157.83,157.8,6.337]
[1723190216187,27.02,157.83,157.79,22.1804]
[1723190216411,27.02,157.83,157.8,6.3369]
[1723190216707,27.02,157.83,157.79,22.1804]
[1723190216915,27.02,157.83,157.79,15.843]
[1723190217094,27.02,157.83,157.81,6.3363]
[1723190217408,27.02,157.83,157.8,6.337]
[1723190217602,27.02,157.82,157.8,6.337]
[1723190217802,27.02,157.82,157.79,15.843]
[1723190218188,27.02,157.82,157.8,6.337]
[1723190218415,27.02,157.83,157.81,6.3364]
[1723190219784,27.02,157.83,157.8,6.337]
[1723190220412,27.02,157.83,157.81,6.3367]
[1723190220591,15.8763,157.84,157.81,15.8411]
[1723190220791,12.6193,157.87,157.81,15.8411]
[1723190220792,27.02,157.86,157.81,15.8411]
[1723190221790,33.3547,157.86,157.81,15.8411]
[1723190221995,33.3547,157.86,157.78,58.7091]
[1723190221996,27.02,157.84,157.78,15.8443]
[1723190222196,27.02,157.84,157.81,6.3366]
[1723190226098,27.02,157.82,157.77,15.8455]
[1723190226314,27.02,157.82,157.78,6.3378]
[1723190226819,27.02,157.82,157.79,6.3373]
[1723190227192,27.02,157.82,157.78,6.3378]
[1723190227804,18.53,157.8,157.77,22.1837]
[1723190228399,18.53,157.8,157.78,9.51608653]
[1723190228599,18.53,157.8,157.78,15.85368653]
[1723190228791,18.53,157.81,157.79,6.3375]
[1723190231212,18.53,157.82,157.8,6.3371]
[1723190231424,18.53,157.83,157.81,6.3367]
[1723190231602,18.53,157.84,157.82,6.3363]
[1723190231802,18.53,157.83,157.81,22.1779]
[1723190232014,6.3356,157.84,157.8,6.337]
[1723190232339,15.1175,157.88,157.78,15.8442]
[1723190232340,18.53,157.81,157.78,15.8442]
[1723190232695,15.1175,157.88,157.78,15.8442]
[1723190232897,18.53,157.82,157.8,6.3368]
[1723190233098,15.1175,157.88,157.8,6.3368]
[1723190233099,18.53,157.81,157.8,6.3368]
[1723190233523,18.53,157.81,157.78,22.182]
[1723190233709,18.53,157.81,157.78,15.8442]
[1723190233897,6.3356,157.84,157.79,6.3375]
[1723190234098,18.53,157.82,157.8,6.3368]
[1723190236095,18.53,157.83,157.81,6.3367]
[1723190236298,15.1175,157.88,157.82,18.53]
[1723190236626,15.1175,157.88,157.86,6.3346]
[1723190236927,18.53,157.89,157.86,6.3346]
[1723190237222,6.3331,157.9,157.86,6.3346]
[1723190237432,18.53,157.88,157.86,6.3346]
[1723190237723,6.3331,157.9,157.86,6.3346]
[1723190237924,18.53,157.88,157.86,6.3346]
[1723190238295,6.3328,157.91,157.87,6.3342]
[1723190238502,18.53,157.9,157.86,22.1703]
[1723190238731,18.53,157.89,157.87,6.3339]
[1723190239109,22.2689,157.92,157.87,6.3339]
[1723190239303,18.53,157.9,157.87,6.3339]
[1723190239510,18.53,157.9,157.86,15.836]
[1723190239511,18.53,157.9,157.88,6.3338]
[1723190239807,18.53,157.91,157.89,6.3334]
[1723190240727,18.53,157.91,157.88,6.3338]
[1723190241217,34.4666,157.92,157.89,6.3334]
[1723190242312,6.3327,157.91,157.85,15.8377]
[1723190242627,18.53,157.89,157.87,6.3342]
[1723190243007,15.3766,157.96,157.87,34.3649]
[1723190243213,18.53,157.92,157.87,34.3649]
[1723190243418,15.3766,157.96,157.91,6.3327]
[1723190243607,18.53,157.93,157.91,6.3327]
[1723190243920,18.53,157.92,157.9,6.333]
[1723190244124,18.53,157.92,157.89,22.1664]
[1723190245044,15.3766,157.96,157.86,6.3345]
[1723190245045,18.53,157.9,157.86,6.3345]
[1723190245248,22.4158,157.97,157.84,6.3353]
[1723190245249,74.12,157.92,157.84,6.3353]
[1723190245416,74.12,157.92,157.86,6.3345]
[1723190245417,16.2858,157.9,157.86,6.3345]
[1723190246113,18.53,157.87,157.8,28.04418113]
[1723190246341,18.53,157.83,157.81,6.3366]
[1723190246554,18.53,157.82,157.8,22.1789]
[1723190246844,18.53,157.82,157.81,6.3367]
[1723190247426,6.3347,157.86,157.8,15.8422]
[1723190247427,18.53,157.83,157.82,6.3362]
[1723190248759,22.705,157.9,157.82,6.3362]
[1723190248760,18.53,157.84,157.83,6.3355]
[1723190248943,22.705,157.9,157.84,6.3353]
[1723190248944,18.53,157.85,157.84,6.3353]
[1723190249315,18.53,157.85,157.83,6.3359]
[1723190249523,22.705,157.9,157.83,6.3359]
[1723190249524,18.53,157.84,157.83,6.3359]
[1723190250544,18.53,157.85,157.83,6.3359]
[1723190250736,18.53,157.86,157.84,6.3355]
[1723190250938,18.53,157.86,157.85,6.3351]
[1723190251126,18.53,157.87,157.85,6.3351]
[1723190251323,6.3339,157.88,157.84,15.838]
[1723190251546,18.53,157.87,157.84,15.838]
[1723190252025,18.53,157.87,157.85,6.3349]
[1723190252230,18.53,157.86,157.84,22.1734]
[1723190252635,18.53,157.87,157.85,6.3351]
[1723190252823,18.53,157.87,157.84,15.838]
[1723190252824,18.53,157.88,157.86,6.3347]
[1723190253255,18.53,157.89,157.84,34.368]
[1723190253428,34.8158,157.9,157.87,6.3339]
[1723190253636,18.53,157.89,157.87,6.3339]
[1723190254447,18.53,157.89,157.86,22.1707]
[1723190256424,18.53,157.88,157.86,15.8361]
[1723190256654,18.53,157.87,157.84,6.3352]
[1723190256826,18.53,157.86,157.83,22.1753]
[1723190257336,18.53,157.84,157.8,15.8425]
[1723190257542,18.53,157.81,157.8,22.1796]
[1723190257726,27.02,157.83,157.8,22.1796]
[1723190258442,27.02,157.83,157.81,6.3366]
[1723190259149,27.02,157.84,157.82,6.3362]
[1723190260645,27.02,157.86,157.83,6.3359]
[1723190261249,27.02,157.86,157.82,22.1763]
[1723190261950,27.02,157.86,157.79,15.8434]
[1723190262549,27.02,157.86,157.82,6.3362]
[1723190262965,27.02,157.86,157.84,6.3353]
[1723190263255,27.02,157.88,157.79,36.53516211]
[1723190263452,27.02,157.88,157.8,45.0]
[1723190263780,27.02,157.88,157.83,15.8391]
[1723190263958,6.3343,157.87,157.83,15.8391]
[1723190264134,33.3539,157.88,157.83,22.1749]
[1723190264466,33.3539,157.88,157.84,6.3354]
[1723190264467,27.02,157.88,157.84,6.3354]
[1723190265241,27.02,157.88,157.85,6.335]
[1723190266243,27.02,157.89,157.83,15.8391]
[1723190266457,27.02,157.89,157.84,45.0]
[1723190266649,33.3535,157.89,157.84,45.0]
[1723190267364,33.3535,157.89,157.84,6.3351]
[1723190267533,27.02,157.89,157.85,6.335]
[1723190267861,33.3536,157.89,157.85,6.335]
[1723190268473,33.3536,157.89,157.84,6.3354]
[1723190269061,27.02,157.89,157.85,6.3349]
[1723190269565,22.619,157.9,157.86,6.3346]
[1723190269566,43.3058,157.9,157.86,6.3346]
[1723190270554,27.02,157.89,157.85,6.335]
[1723190270862,27.02,157.89,157.83,15.8391]
[1723190271064,27.02,157.89,157.84,45.0]
[1723190271275,27.02,157.88,157.83,15.8391]
[1723190271975,33.3539,157.88,157.84,6.3354]
[1723190272147,33.3539,157.88,157.83,15.8391]
[1723190272766,33.3539,157.88,157.83,22.1747]
[1723190272946,27.02,157.88,157.84,6.3353]
[1723190274065,27.02,157.88,157.85,6.3349]
[1723190275875,16.2858,157.9,157.85,15.8372]
[1723190276354,43.3058,157.9,157.85,15.8372]
[1723190277060,49.6389,157.9,157.86,6.3346]
[1723190277851,27.02,157.89,157.86,6.3346]
[1723190278179,22.6189,157.9,157.86,6.3346]
[1723190278180,43.3058,157.9,157.86,6.3346]
[1723190278969,49.6389,157.9,157.86,6.3346]
[1723190279573,27.02,157.89,157.86,6.3346]
[1723190279772,22.6189,157.9,157.86,6.3346]
[1723190279773,18.51,157.88,157.86,6.3346]
[1723190280070,18.51,157.87,157.83,6.3356]
[1723190280272,18.51,157.86,157.84,51.3354]
[1723190280463,18.51,157.87,157.84,51.3354]
[1723190280856,6.3336,157.89,157.85,6.3349]
[1723190281177,18.51,157.87,157.84,67.1736]
[1723190281356,6.3336,157.89,157.84,67.1736]
[1723190281565,18.51,157.85,157.84,15.8382]
[1723190282665,18.51,157.85,157.84,22.1737]
[1723190284259,18.51,157.87,157.86,6.3344]
[1723190284660,18.51,157.87,157.84,15.8382]
[1723190284885,18.51,157.88,157.86,15.8359]
[1723190285577,18.51,157.88,157.86,22.1702]
[1723190285781,18.51,157.87,157.86,22.1702]
[1723190285951,18.51,157.88,157.86,22.1702]
[1723190286381,18.51,157.88,157.87,6.3343]
[1723190290060,18.51,157.88,157.86,22.1705]
[1723190290260,18.51,157.87,157.86,22.1705]
[1723190290470,18.51,157.87,157.86,67.1705]
[1723190290667,18.51,157.87,157.84,9.51247603]
[1723190290864,18.51,157.85,157.82,9.51247603]
[1723190291077,18.51,157.85,157.77,18.51]
[1723190291078,16.2858,157.9,157.79,28.02247603]
[1723190291279,6.3346,157.87,157.82,6.3363]
[1723190291592,18.51,157.83,157.82,6.3363]
[1723190293363,18.51,157.85,157.83,6.3359]
[1723190293563,18.51,157.85,157.84,6.3355]
[1723190293797,18.51,157.85,157.83,22.1751]
[1723190293967,18.51,157.84,157.83,22.1751]
[1723190294570,6.3339,157.88,157.83,22.1751]
[1723190294571,18.51,157.85,157.83,22.1751]
[1723190294772,18.51,157.84,157.81,6.3364]
[1723190294989,18.51,157.84,157.82,45.0]
[1723190295288,18.51,157.84,157.82,6.3359]
[1723190297774,18.51,157.85,157.83,6.3359]
[1723190298380,18.51,157.86,157.84,6.3354]
[1723190299566,18.51,157.87,157.85,6.3351]
[1723190299963,16.2858,157.9,157.86,15.8361]
[1723190300167,16.2858,157.9,157.86,22.1707]
[1723190300168,18.51,157.89,157.86,22.1707]
[1723190300366,18.51,157.88,157.86,22.1707]
[1723190301095,18.51,157.92,157.89,6.3331]
[1723190301268,18.51,157.93,157.9,6.333]
[1723190301469,16.1789,157.94,157.9,34.3422]
[1723190301675,34.6889,157.94,157.9,34.3422]
[1723190301877,34.6889,157.94,157.91,6.3326]
[1723190302188,34.6889,157.94,157.92,6.3323]
[1723190302592,3.29989861,158.11,157.92,6.3323]
[1723190302593,16.3307,157.98,157.92,34.34]
[1723190302772,18.51,157.97,157.94,6.3312]
[1723190303178,18.51,157.96,157.93,51.3318]
[1723190304583,16.5966,158.01,157.95,18.51]
[1723190304783,6.5163,158.04,157.98,34.334]
[1723190304982,18.51,158.03,157.99,45.0]
[1723190305571,18.51,158.04,157.99,63.51]
[1723190305878,18.51,158.04,158.0,6.3287]
[1723190306104,18.51,158.04,158.0,15.8219]
[1723190306399,18.51,158.04,158.0,34.3319]
[1723190307096,18.51,158.04,158.01,6.3286]
[1723190307502,18.51,158.05,158.01,6.3286]
[1723190307803,49.8633,158.06,158.01,6.3286]
[1723190309198,43.5366,158.06,158.02,6.3282]
[1723190309776,49.8633,158.06,158.02,6.3282]
[1723190310688,6.3277,158.04,158.0,15.8219]
[1723190310891,26.94,158.05,158.0,15.8219]
[1723190311398,33.2671,158.05,158.0,15.8219]
[1723190312195,33.2671,158.05,158.0,22.1506]
[1723190312396,33.2671,158.05,158.01,6.3286]
[1723190312582,26.94,158.05,158.01,6.3286]
[1723190312984,49.8633,158.06,158.01,6.3286]
[1723190313306,26.94,158.05,158.01,6.3286]
[1723190313509,33.2671,158.05,158.0,15.8219]
[1723190313714,33.2671,158.05,157.99,51.3291]
[1723190313715,16.5966,158.06,157.99,6.3292]
[1723190314002,26.94,158.04,157.99,15.8231]
[1723190314207,26.94,158.03,158.01,6.3286]
[1723190314578,26.94,158.03,158.0,6.329]
[1723190315185,26.94,158.03,157.99,22.1525]
[1723190315391,26.94,158.02,157.99,22.1525]
[1723190316328,26.94,158.02,158.0,6.3291]
[1723190316477,26.94,158.02,158.01,6.3287]
[1723190316679,26.94,158.05,158.02,6.328]
[1723190316888,26.94,158.05,158.02,6.3282]
[1723190317488,26.94,158.05,158.03,6.3278]
[1723190317995,26.94,158.05,158.02,6.3283]
[1723190318204,26.94,158.05,158.01,22.1497]
[1723190318492,26.94,158.05,158.02,6.3282]
[1723190318894,26.94,158.05,158.01,22.1497]
[1723190319813,26.94,158.05,158.02,6.3282]
[1723190320422,26.94,158.05,158.01,22.1498]
[1723190321100,33.2671,158.05,158.01,22.1498]
[1723190321300,26.94,158.05,158.02,6.3282]
[1723190321501,43.5366,158.06,158.03,6.3278]
[1723190321706,43.5366,158.06,158.02,6.3282]
[1723190322015,49.8634,158.06,158.01,22.1497]
[1723190322216,22.9234,158.06,158.02,6.3282]
[1723190322516,43.5366,158.06,158.02,6.3282]
[1723190322705,49.8634,158.06,158.01,22.1497]
[1723190323107,49.8634,158.06,158.02,6.3282]
[1723190323320,43.5366,158.06,157.97,26.94]
[1723190323502,43.5366,158.06,157.93,58.5985]
[1723190323503,26.94,158.02,157.93,58.5985]
[1723190323701,26.94,158.02,157.96,15.8259]
[1723190324829,33.2687,158.01,157.96,22.1563]
[1723190325009,6.3287,158.01,157.96,22.1563]
[1723190325206,6.3283,158.02,157.97,6.3302]
[1723190325511,16.5966,158.06,157.96,15.8259]
[1723190325829,6.3275,158.04,157.96,15.8259]
[1723190326015,26.94,158.02,157.99,6.3291]
[1723190327603,6.3275,158.04,158.0,6.329]
[1723190328525,6.3275,158.04,158.03,6.3279]
[1723190328526,26.94,158.04,158.03,6.3279]
[1723190328715,16.5966,158.06,158.01,1.26557548]
[1723190328922,16.5966,158.06,157.98,1.26552432]
[1723190329112,16.5966,158.06,157.99,1.26553713]
[1723190329315,16.5966,158.06,158.03,6.3278]
[1723190331417,16.5966,158.06,158.04,6.3273]
[1723190331616,16.5966,158.06,158.03,6.3278]
[1723190334132,16.5966,158.06,158.04,6.3275]
[1723190334336,35.0666,158.06,158.04,6.3275]
[1723190334559,16.5966,158.06,158.04,6.3275]
[1723190335639,16.5966,158.06,158.05,6.3271]
[1723190336236,16.5966,158.06,158.04,17.08344756]
[1723190336237,18.47,158.08,158.06,6.3267]
[1723190336637,18.47,158.09,158.07,6.3263]
[1723190336838,34.8811,158.1,158.07,6.3263]
[1723190337231,16.4111,158.1,158.08,6.3255]
[1723190337438,18.47,158.11,158.08,6.3255]
[1723190337636,18.47,158.1,158.08,6.3255]
[1723190337835,12.3369,158.12,158.08,6.3255]
[1723190338043,18.47,158.09,158.06,22.1424]
[1723190338557,18.47,158.09,158.07,6.3262]
[1723190339461,18.47,158.08,158.07,6.3262]
[1723190340047,18.47,158.09,158.07,6.3262]
[1723190340657,12.3369,158.12,158.08,6.3258]
[1723190340840,18.47,158.09,158.07,6.3262]
[1723190341653,18.47,158.1,158.08,6.3259]
[1723190341838,18.47,158.1,158.06,34.2861]
[1723190341839,18.47,158.1,158.09,6.3255]
[1723190342160,6.0126,158.12,158.02,1.26507671]
[1723190342161,18.47,158.12,158.1,6.3249]
[1723190342547,0.8282147,158.13,158.1,6.3249]
[1723190342752,0.8282147,158.13,158.08,15.814]
[1723190342962,18.47,158.09,158.08,15.814]
[1723190343147,18.47,158.09,158.08,22.1399]
[1723190343346,18.47,158.11,158.08,22.1399]
[1723190343865,18.47,158.09,158.06,6.3266]
[1723190344240,6.3243,158.12,158.08,6.3258]
[1723190344543,18.47,158.1,158.08,6.3258]
[1723190345263,7.1522147,158.13,158.09,6.3254]
[1723190345467,7.1522147,158.13,158.08,6.3258]
[1723190345652,18.47,158.11,158.08,6.3258]
[1723190347775,6.3244,158.12,158.07,67.1415]
[1723190347967,18.47,158.1,158.07,67.1415]
[1723190348168,18.47,158.1,158.08,6.3259]
[1723190348369,0.8282147,158.13,158.09,6.3255]
[1723190348673,18.47,158.11,158.07,60.8152]
[1723190349162,18.47,158.11,158.09,6.3254]
[1723190350088,18.47,158.11,158.07,67.1412]
[1723190350281,18.47,158.1,158.07,15.8152]
[1723190350955,18.47,158.09,158.05,6.3269]
[1723190351162,18.47,158.06,158.02,15.82744102]
[1723190351364,18.47,158.04,158.01,9.49934102]
[1723190351576,18.47,158.03,158.01,6.3285]
[1723190351886,18.47,158.02,158.0,15.8219]
[1723190352190,18.47,158.01,157.98,6.3299]
[1723190352359,16.0279,158.08,157.99,18.47]
[1723190352556,18.47,158.04,158.02,6.3283]
[1723190352786,18.47,158.03,158.01,6.3286]
[1723190352987,18.47,158.04,158.02,6.3283]
[1723190354387,18.47,158.05,158.04,15.8187]
[1723190354573,16.0279,158.08,158.04,15.8187]
[1723190354574,18.47,158.07,158.05,6.327]
[1723190354776,16.0279,158.08,158.04,15.8187]
[1723190354777,18.47,158.06,158.04,22.1461]
[1723190355872,18.47,158.07,158.04,22.1461]
[1723190356067,16.0279,158.08,158.04,22.1461]
[1723190356379,15.3234,158.12,158.07,15.8152]
[1723190356585,15.3234,158.12,158.05,45.0]
[1723190356771,6.3258,158.09,158.05,45.0]
[1723190356967,6.3258,158.09,158.04,15.8186]
[1723190357180,18.47,158.05,158.01,6.3283]
[1723190357390,18.47,158.05,158.02,45.0]
[1723190357599,18.47,158.05,158.04,6.3275]
[1723190357795,18.47,158.06,158.04,6.3275]
[1723190358171,18.47,158.07,158.05,6.3271]
[1723190358479,18.47,158.07,158.06,6.3267]
[1723190358802,18.47,158.07,158.04,22.145]
[1723190359876,18.47,158.07,158.04,15.8179]
[1723190360072,15.3234,158.12,158.06,15.8159]
[1723190360493,18.47,158.09,158.06,15.8159]
[1723190360798,21.6478,158.12,158.06,22.1422]
[1723190360971,18.47,158.09,158.06,22.1422]
[1723190361373,18.47,158.09,158.07,6.3262]
[1723190362489,18.47,158.08,158.07,6.3262]
[1723190362878,18.47,158.08,158.03,15.8195]
[1723190363081,6.3251,158.1,158.03,15.8195]
[1723190363396,18.47,158.07,158.03,15.8195]
[1723190363990,18.47,158.07,158.05,6.327]